Workbook

Sheet Лист согласований (hidden)
B2: Лист согласований
B11: Наименование организации (предприятия) | C11: Исполнитель | D11: ФИО | E11: Подпись | F11: Дата | G11: Примечание
B12: ООО НПП "ЭКРА" | C12: Разработал | D12: Немудрова К.С. | F12: 2011-04-13
B13: ООО НПП "ЭКРА" | C13: Зав.сектором | D13: Доронин А.В. | F13: 2011-04-13
B14: ООО НПП "ЭКРА" | C14: Утвердил | D14: Наумов В.А. | F14: 2011-04-13
C15: Расчет выполнил
C16: ГИП
C17: Начальник СРЗА

Sheet Бланк уставок
J1: Бланк задания уставок терминала ЭКРА 217(A) 0321
A3: Таблица аналоговых сигналов терминала | G3: Входная цепь | J3: Обозначение защиты | K3: Наименование уставок | O3: Обозначение уставок | P3: ед. изм. | Q3: Диапазон уставок (вторич) | T3: Значение уставки по умолчанию | U3: Уставка
A4: Адр. | B4: Обозначение аналог. вх. | E4: Ном. знач. аналог. вх. | F4: Диапазон измерения аналог. вх. | G4: Обозначение | H4: Число фаз | I4: Ном. знач. | Q4: мин | R4: макс | S4: шаг | U4: первич | V4: вторич | W4: о.е. | X4: c
A5: 1 | B5: А | C5: =CONCATENATE('[1]Блок анал.сигн.'!E2,'[1]Блок анал.сигн.'!D2) -> I Y | E5: 5A/ 1А | F5: (0,25…200)А/ (0,05…40)А | G5: I,Y | I5: 5 | J5: РТ МТЗ-1 | K5: Ток срабатывания | O5: Iср | P5: А | Q5: 0.25 | R5: 200 | S5: 0.001 | T5: 60 | Y5: 4
A6: 2 | B6: В | K6: Коэффициент возврата | O6: Kвоз | P6: - | Q6: 0.5 | R6: 1 | S6: 0.01 | T6: 0.95
A7: 3 | B7: С | K7: Выдержка времени на срабатывание защиты | O7: МТЗ-1_Сраб_t | P7: с | Q7: 0 | R7: 9999 | S7: 0.001 | T7: 0.04
A8: 4 | B8: А | C8: =CONCATENATE('[1]Блок анал.сигн.'!E14,'[1]Блок анал.сигн.'!D14) -> UY | E8: 100В | F8: (0,3…200)В | K8: Выдержка времени на срабатывании защиты | O8: МТЗ-1_Сраб_t2 | P8: с | Q8: 0 | R8: 9999 | S8: 0.001 | T8: 1
A9: 5 | B9: В | K9: Автоматическое загрубление уставки: 1-предусмотрено; 0-не предусмотрено | O9: МТЗ-1_Авт_загр_уст | P9: - | Q9: 0 | R9: 1 | S9: - | T9: 0
A10: 6 | B10: С | K10: Действие направленной МТЗ-1 при неисправности ТН: 1 – автоматическое переключение на ненаправленную работу МТЗ-1; 0-запрет работы | O10: МТЗ-1_Напр_при_Неисп_ТН | P10: - | Q10: 0 | R10: 1 | S10: - | T10: 0
A11: 7 | B11: Н-К | C11: U | E11: 100В | F11: (0,3…200)В | K11: Контроль направленности МТЗ-1: 1-предусмотрен; 0-не предусмотрен | O11: МТЗ-1_Конт_напр | P11: - | Q11: 0 | R11: 1 | S11: - | T11: 0
A12: 8 | C12: U(ф) | E12: 60В | F12: (0,15…135)В | K12: Пуск по напряжению МТЗ-1: 1-предусмотрен; 0-не предусмотрен | O12: МТЗ-1_Пуск_по_напр | P12: - | Q12: 0 | R12: 1 | S12: - | T12: 0
A13: 9 | B13: Н-К | C13: Iттнп1 | E13: 0,15A | F13: (0,0075…6)А | G13: I,Y | I13: 5 | J13: РТ Заг МТЗ-1 | K13: Ток срабатывания | O13: Iср | P13: А | Q13: 0.25 | R13: 200 | S13: 0.001 | T13: 10 | Y13: 4
A14: 10 | C14: Iттнп1(ф) | E14: 0,6A / 0,2A | F14: (0,002…1,6)А / (0,0006…0,5)A | K14: Коэффициент возврата | O14: Kвоз | P14: - | Q14: 0.5 | R14: 1 | S14: 0.01 | T14: 0.95
A15: 11 | B15: Н-К | C15: Iттнп2 | E15: 5A/ 1А | F15: (0,25…200)А/ (0,05…40)А | G15: I,Y | I15: 5 | J15: РТ МТЗ-2 | K15: Ток пуска | O15: Iпуск | P15: о.е. | Q15: 0.1 | R15: 5 | S15: 0.01 | T15: 3.5 | Y15: 4
K16: Коэффициент возврата | O16: Kвоз | P16: - | Q16: 0.5 | R16: 0.95 | S16: 0.01 | T16: 0.95
K17: Тип выдержек времени на срабатывание | O17: Тип ВВС | P17: - | Q17: 1 | R17: 15 | S17: - | T17: 1
K18: Тип выдержек времени на возврат | O18: Тип ВВВ | P18: - | Q18: 1 | R18: 7 | S18: - | T18: 1
K19: Время возврата | O19: Твоз | P19: с | Q19: 0 | R19: 200 | S19: 0.01 | T19: 0
K20: Выдержка времени на срабатывание защиты | O20: МТЗ-2_Сраб_t | P20: с | Q20: 0 | R20: 9999 | S20: 0.001 | T20: 0.5
K21: Выдержка времени на срабатывание защиты | O21: МТЗ-2_Сраб_t2 | P21: с | Q21: 0 | R21: 9999 | S21: 0.001 | T21: 1.5
K22: Действие направленной МТЗ-2 при неисправности ТН: 1 – автоматическое переключение на ненаправленную работу МТЗ-2; 0-запрет работы | O22: МТЗ-2_Напр_при_Неисп_ТН | P22: - | Q22: 0 | R22: 1 | S22: - | T22: 1
K23: Контроль направленности МТЗ-2: 1-предусмотрен; 0-не предусмотрен | O23: МТЗ-2_Конт_напр | P23: - | Q23: 0 | R23: 1 | S23: - | T23: 0
K24: Пуск по напряжению МТЗ-2: 1-предусмотрен; 0-не предусмотрен | O24: МТЗ-2_Пуск_по_напр | P24: - | Q24: 0 | R24: 1 | S24: - | T24: 0
K25: Ускорение МТЗ-2: 1-предусмотрено; 0-не предусмотрено | O25: Ускор_МТЗ-2 | P25: - | Q25: 0 | R25: 1 | S25: - | T25: 0
G26: I,Y | I26: 5 | J26: РТ МТЗ-3 | K26: Ток пуска | O26: Iпуск | P26: о.е. | Q26: 0.1 | R26: 5 | S26: 0.01 | T26: 0.1 | Y26: 4
K27: Коэффициент возврата | O27: Kвоз | P27: - | Q27: 0.5 | R27: 0.95 | S27: 0.01 | T27: 0.95
K28: Тип выдержек времени на срабатывание | O28: Тип ВВС | P28: - | Q28: 1 | R28: 15 | S28: - | T28: 1
K29: Тип выдержек времени на возврат | O29: Тип ВВВ | P29: с | Q29: 1 | R29: 7 | S29: - | T29: 1
K30: Время возврата | O30: Твоз | P30: с | Q30: 0 | R30: 200 | S30: 0.01 | T30: 0
K31: Выдержка времени на срабатывание защиты | O31: МТЗ-3_Сраб_t | P31: с | Q31: 0 | R31: 9999 | S31: 0.001 | T31: 1
K32: Выдержка времени на срабатывание защиты | O32: МТЗ-3_Сраб_t2 | P32: с | Q32: 0 | R32: 9999 | S32: 0.001 | T32: 1.5
K33: Выдержка времени при ускорении защиты | O33: Ускор_МТЗ | P33: с | Q33: 0 | R33: 9999 | S33: 0.001 | T33: 0.25
K34: Действие направленной МТЗ-3 при неисправности ТН: 1 – автоматическое переключение на ненаправленную работу МТЗ-2; 0-запрет работы | O34: МТЗ-3_Напр_при_Неисп_ТН | P34: - | Q34: 0 | R34: 1 | S34: - | T34: 0
K35: Контроль направлености МТЗ-3: 1-предусмотрен; 0-не предусмотрен | O35: Конт_нап_МТЗ-3 | P35: - | Q35: 0 | R35: 1 | S35: - | T35: 0
K36: Пуск по напряжению МТЗ-3: 1-предусмотрен; 0-не предусмотрен | O36: МТЗ-3_Пуск_по_напр | P36: - | Q36: 0 | R36: 1 | S36: - | T36: 0
K37: Ускорение МТЗ-3: 1-предусмотрено; 0-не предусмотрено | O37: Ускор_МТЗ-3 | P37: - | Q37: 0 | R37: 1 | S37: - | T37: 0
G38: I,Y | I38: 5 | J38: РНМ МТЗ | K38: Ток срабатывания | O38: Iср | P38: А | Q38: 0.25 | R38: 200 | S38: 0.01 | T38: 0.5 | Y38: 4
G39: U,Y | I39: 57.74 | K39: Коэффициент возврата | O39: Kвоз | P39: - | Q39: 0.5 | R39: 1 | S39: 0.01 | T39: 0.95
K40: Минимальное линейное напряжение срабатывания | O40: Uмин | P40: В | Q40: 0.58 | R40: 11.54 | S40: 0.01 | T40: 3
K41: Коэффициен возврата по напряжению | O41: Kвоз.U | P41: - | Q41: 0.5 | R41: 1 | S41: 0.01 | T41: 0.95
K42: Нижняя граница зоны срабатывания | O42: φmin | P42: градyc | Q42: 0 | R42: 359.9 | S42: 0.1 | T42: 225
K43: Верхняя граница зоны срабатывания | O43: φmax | P43: градус | Q43: 0 | R43: 359.9 | S43: 0.1 | T43: 45
G44: U,Y | I44: 57.74 | J44: РН ПпН | K44: Напряжение срабатывания | O44: Uср | P44: В | Q44: 0.3 | R44: 264 | S44: 0.01 | T44: 60 | Y44: 4
K45: Коэффициент возврата | O45: Kвоз | P45: - | Q45: 1 | R45: 1.5 | S45: 0.01 | T45: 1.05
G46: U,Y | I46: 57.74 | J46: U2 > | K46: Напряжение срабатывания | O46: Uср | P46: В | Q46: 0.3 | R46: 264 | S46: 0.01 | T46: 10 | Y46: 4
K47: Коэффициент возврата | O47: Kвоз | P47: - | Q47: 0.5 | R47: 1 | S47: 0.01 | T47: 0.95
G48: U,н-к | I48: 33.3 | J48: КИН | K48: Напряжение срабатывания | O48: UCР | P48: В | Q48: 1 | R48: 100 | S48: 0.01 | T48: 10 | Y48: 1
G49: U,Y | I49: 57.74 | K49: Коэффициент возврата | O49: Квоз | P49: - | Q49: 0.5 | R49: 1 | S49: 0.01 | T49: 0.95
K50: Выдержка времени при неисправности цепей напряжения | O50: КИН_Сраб | P50: с | Q50: 0 | R50: 9999 | S50: 0.001 | T50: 0.5
G51: U(ф),н-к | I51: 33.3 | J51: ЗОЗЗ | K51: 3Uо > | L51: Напряжение срабатывания | O51: Uср | P51: В | Q51: 0.15 | R51: 135 | S51: 0.01 | T51: 10 | Y51: 4
L52: Коэффициент возврата | O52: Kвоз | P52: - | Q52: 0.5 | R52: 1 | S52: 0.01 | T52: 0.95
L53: Сигнализация земли в сети | O53: 3Uo_Сигн | P53: c | Q53: 0 | R53: 9999 | S53: 0.001 | T53: 0.03
G54: I,ттнп1 (ф),н-к | I54: 0.6 | K54: 3Iо > | L54: Ток срабатывания | O54: Iср | P54: А | Q54: 0.002 | R54: 1.6 | S54: 0.001 | T54: 0.1 | Y54: 4
L55: Коэффициент возврата | O55: Kвоз | P55: - | Q55: 0.5 | R55: 1 | S55: 0.01 | T55: 0.95
G56: I,ттнп1, н-к | I56: 0.2 | K56: РТ ВГ | L56: Емкостной ток | O56: Iс | P56: А | Q56: 0.1 | R56: 500 | S56: 0.1 | T56: 30 | Y56: 4
G58: U,н-к | I58: 33.3 | L58: Коэффициент торможения | O58: Kт | P58: - | Q58: 0.1 | R58: 1 | S58: 0.01 | T58: 0.3
G59: U,Y | I59: 57.74
G60: I,ттнп1 (ф),н-к | I60: 0.6 | K60: РТ I25 | L60: Ток уставки | O60: Iуст | P60: мА | Q60: 5 | R60: 1200 | S60: 1 | T60: 42 | Y60: 4
G61: I,ттнп1 (ф),н-к | I61: 0.6 | K61: P(IE)> | L61: Уставка срабатывания | O61: P0уст | P61: Вт | Q61: 0 | R61: 200 | S61: 0.001 | T61: 22.12 | Y61: 4
L62: Коэффициент возврата | O62: Kвоз | P62: - | Q62: 0.5 | R62: 0.75 | S62: 0.01 | T62: 0.75
G63: U(ф),н-к | I63: 33.3
K64: Тип сети: 1 -компенсированная_ 0 -изолированная | O64: Тип_сети | P64: - | Q64: 0 | R64: 1 | S64: - | T64: 0
K65: Работа ЗОЗЗ по напряжению 3Uo: 1-предусмотрена; 0-не предусмотрена | O65: Контр_3Uo | P65: - | Q65: 0 | R65: 1 | S65: - | T65: 0
K66: Работа по 3Uo и по 3Io с учетом направленности: 1-предусмотрена; 0-не предусмотрена | O66: Контр_напр | P66: - | Q66: 0 | R66: 1 | S66: - | T66: 0
K67: Работа ЗОЗЗ по высшим гармоникам: 1-предусмотрена; 0-не предусмотрена | O67: Работа_по_ВГ | P67: - | Q67: 0 | R67: 1 | S67: - | T67: 0
K68: Работа ЗОЗЗ по активной мощности нулевой последовательности: 1-предусмотрена; 0-не предусмотрена | O68: Работа_по_Pакт | P68: - | Q68: 0 | R68: 1 | S68: - | T68: 0
K69: Работа ЗОЗЗ по I25: 1-предусмотрена; 0-не предусмотрена | O69: Работа_по_I25 | P69: - | Q69: 0 | R69: 1 | S69: - | T69: 0
K70: Технологическая выдержка времени | O70: DT1 | P70: с | Q70: 0 | R70: 9999 | S70: 0.001 | T70: 0.01
K71: Технологическая выдержка времени | O71: DT2 | P71: с | Q71: 0 | R71: 9999 | S71: 0.001 | T71: 0.01
K72: Технологическая выдержка времени | O72: DT3 | P72: с | Q72: 0 | R72: 9999 | S72: 0.001 | T72: 0.01
K73: Технологическая выдержка времени | O73: DT4 | P73: с | Q73: 0 | R73: 9999 | S73: 0.001 | T73: 0.35
K74: Выдержка времени на срабатывание | O74: ЗОЗЗ_Сраб | P74: с | Q74: 0 | R74: 9999 | S74: 0.001 | T74: 0.5
K75: Выдержка времени на срабатывание | O75: ЗОЗЗ_Сигн | P75: с | Q75: 0 | R75: 9999 | S75: 0.001 | T75: 1
G76: I,ттнп1 (ф),н-к | I76: 0.6 | J76: РТ 3Iо >> | K76: Ток срабатывания | O76: Iср | P76: А | Q76: 0.002 | R76: 1.6 | S76: 0.001 | T76: 0.2 | Y76: 4
K77: Коэффициент возврата | O77: Kвоз | P77: - | Q77: 0.5 | R77: 1 | S77: 0.01 | T77: 0.95
G78: I,ттнп1 (ф),н-к | I78: 0.6 | J78: РНМ НПФ | K78: Ток срабатывания | O78: Iуст | P78: А | Q78: 0.05 | R78: 4 | S78: 0.01 | T78: 0.05 | Y78: 4
K79: Коэффициент возврата | O79: K_I | P79: - | Q79: 0.5 | R79: 1 | S79: 0.01 | T79: 0.9
G80: U(ф),н-к | I80: 33.3 | K80: Напряжение срабатывания | O80: Uуст | P80: В | Q80: 1 | R80: 150 | S80: 0.1 | T80: 2
K81: Коэффициент возврата | O81: K_U | P81: - | Q81: 0.5 | R81: 1 | S81: 0.01 | T81: 0.95
K82: Граница зоны срабатывания | O82: Fi | P82: град | Q82: 0 | R82: 359.9 | S82: 0.1 | T82: 70
G83: I,ттнп2, н-к | I83: 5 | J83: 3IoN> | K83: Коэффициент возврата | O83: Kв | P83: - | Q83: 0.5 | R83: 1 | S83: 0.01 | T83: 0.95
K84: Ток срабатывания | O84: Iср | P84: А | Q84: 0.25 | R84: 200 | S84: 0.001 | T84: 1
K85: Выдержка времени на срабатывание | O85: ЗОЗЗ_N_Сраб_t1 | P85: с | Q85: 0 | R85: 9999 | S85: 0.001 | T85: 0.2
K86: Выдержка времени на срабатывание | O86: ЗОЗЗ_N_Сраб_t2 | P86: с | Q86: 0 | R86: 9999 | S86: 0.001 | T86: 0.6
G87: I,Y | H87: 3ф | I87: 5 | J87: ЗОЗЗ-2 | K87: РТ ТОНП | L87: Ток срабатывания | O87: Iср | P87: А | Q87: 0.01 | R87: 20 | S87: 0.01 | T87: 6
L88: Коэффициент возврата | O88: Kвоз. | P88: - | Q88: 0.5 | R88: 1 | S88: 0.01 | T88: 0.95
L89: Выдержка времени на срабатывание | O89: ЗОЗЗ-2_Сраб | P89: с | Q89: 0 | R89: 9999 | S89: 0.001 | T89: 0.1
G90: I,ттнп1, н-к | H90: 3ф | I90: 0.6 | K90: РТ 3I0>>> | L90: Ток срабатывания | O90: Iср | P90: А | Q90: 0.008 | R90: 6 | S90: 0.001 | T90: 4
L91: Коэффициент возврата | O91: Kвоз | P91: - | Q91: 0.5 | R91: 1 | S91: 0.01 | T91: 0.95
G92: I,Y | H92: 3ф | I92: 5 | J92: РТ ЗНР | K92: Коэффициент несимметрии | O92: K | P92: % | Q92: 10 | R92: 100 | S92: 0.01 | T92: 25 | Y92: 1
K93: Коэффициент возврата | O93: Kвоз | P93: - | Q93: 0.5 | R93: 1 | S93: 0.01 | T93: 0.95
K94: Значение тока, при котором производится расчет соотношения | O94: I1min | P94: In | Q94: 0.01 | R94: 1 | S94: 0.01 | T94: 0.01
K95: Выдержка времени на срабатывание | O95: ЗНР_Сраб | P95: с | Q95: 0 | R95: 9999 | S95: 0.001 | T95: 1
K96: Выдержка времени при срабатывании органа Откл. | O96: Откл_t | P96: с | Q96: 0 | R96: 9999.99 | S96: 0.001 | U96: Выведено
G97: U,Y | H97: 1ф | I97: 57.74 | J97: ЗМН | K97: РН ЗМН-1 | L97: Напряжение срабатывания | O97: Uср | P97: В | Q97: 0.3 | R97: 264 | S97: 0.01 | T97: 70 | Y97: 3
H98: 1ф | L98: Коэффициент возврата | O98: Kвоз | P98: - | Q98: 1 | R98: 1.5 | S98: 0.01 | T98: 1.05
L99: Длительность импульса с прерыванием | O99: TMOI1 | P99: с | Q99: 0.001 | R99: 9999 | S99: 0.001 | T99: 1
L100: Выдержка времени при срабатывании защиты | O100: ЗМН-1_Сраб | P100: с | Q100: 0 | R100: 9999 | S100: 0.001 | T100: 5
K101: РН ЗМН-2 | L101: Напряжение срабатывания | O101: Uср | P101: В | Q101: 0.3 | R101: 264 | S101: 0.01 | T101: 50 | Y101: 3
L102: Коэффициент возврата | O102: Kвоз | P102: - | Q102: 1 | R102: 1.5 | S102: 0.01 | T102: 1.05
L103: Длительность импульса с прерыванием | O103: TMOI2 | P103: с | Q103: 0.001 | R103: 9999 | S103: 0.001 | T103: 1
L104: Выдержка времени при срабатывании защиты | O104: ЗМН-2_Сраб | P104: с | Q104: 0 | R104: 9999 | S104: 0.001 | T104: 8
G105: U,Y | H105: 1ф | I105: 57.74 | J105: РН ЗПН | K105: Напряжение срабатывания | O105: Uср | P105: В | Q105: 0.3 | R105: 264 | S105: 0.01 | T105: 120 | Y105: 4
K106: Коэффициент возврата | O106: Kвоз | P106: - | Q106: 0.5 | R106: 1 | S106: 0.01 | T106: 0.95
K107: Выдержка времени при срабатывании защиты | O107: ЗПН_Сраб | P107: с | Q107: 0 | R107: 9999 | S107: 0.001 | T107: 0.5
G108: U,Y | H108: 1ф | I108: 57.74 | J108: РКНН | K108: Напряжение срабатывания | O108: Uср | P108: В | Q108: 0.3 | R108: 264 | S108: 0.01 | T108: 85 | Y108: 4
K109: Коэффициент возврата | O109: Kвоз | P109: - | Q109: 0.5 | R109: 1 | S109: 0.01 | T109: 0.95
G110: U,Y | H110: 1ф | I110: 57.74 | J110: РКОН | K110: Напряжение срабатывания | O110: Uср | P110: В | Q110: 0.3 | R110: 264 | S110: 0.01 | T110: 25 | Y110: 4
K111: Коэффициент возврата | O111: Kвоз | P111: - | Q111: 1 | R111: 1.5 | S111: 0.01 | T111: 1.05
K112: Выбор контроля напряжения: 1-по аналоговому сигналу; 0-по дискретному сигналу | O112: Выбор_контр | P112: - | Q112: 0 | R112: 1 | S112: - | T112: 0
G113: I,Y | I113: 5 | J113: РТ УРОВ | K113: Ток срабатывания | O113: Iср | P113: А | Q113: 0.25 | R113: 200 | S113: 0.001 | T113: 60 | Y113: 1
K114: Коэффициент возврата | O114: Квоз | P114: - | Q114: 0.5 | R114: 1 | S114: 0.01 | T114: 0.95
K115: Выдержка времени на формирование сигнала | O115: Неиспр_внеш_УРОВ | P115: с | Q115: 0 | R115: 9999 | S115: 0.001 | T115: 15
K116: Выдержка времени на срабатывание | O116: УРОВ_Пуск | P116: с | Q116: 0 | R116: 9999 | S116: 0.001 | T116: 0.3
K117: Внешний УРОВ на вышестоящий выключатель: 1-предусмотрен; 0-не предусмотрен | O117: Внеш_УРОВ_на_выш_выкл | P117: - | Q117: 0 | R117: 1 | S117: - | T117: 0
K118: Контроль тока при внешнем УРОВ: 1-предусмотрен; 0-не предусмотрен | O118: Конт_тока_при_внеш_УРОВ | P118: - | Q118: 0 | R118: 1 | S118: - | T118: 0
K119: Ввод УРОВ: 1-введено; 0-выведено | O119: Ввод_УРОВ | P119: - | Q119: 0 | R119: 1 | S119: - | T119: 0
G120: I,Y | I120: 5 | J120: ЗДЗ | K120: Выдержка времени на срабатывание | O120: ЗДЗ_Сраб_t1 | P120: с | Q120: 0 | R120: 9999 | S120: 0.001 | T120: 0
K121: Выдержка времени на срабатывание | O121: ЗДЗ_Сраб_t2 | P121: с | Q121: 0 | R121: 9999 | S121: 0.001 | T121: 0.1
K122: Выдержка времени на формирование сигнала | O122: ЗДЗ_Сигн | P122: с | Q122: 0 | R122: 9999 | S122: 0.001 | T122: 0.5
K123: Выдержка времени на формирование сигнала | O123: ЗДЗ_Неиспр | P123: с | Q123: 0 | R123: 9999 | S123: 0.001 | T123: 6
K124: Контроль тока: 1-не предусмотрен; 0-предусмотрен | O124: Контр_ЗДЗ_по_току | P124: - | Q124: 0 | R124: 1 | S124: - | T124: 1
G125: I,Y | I125: 5 | J125: ОМП | K125: Активное сопротивление линии | O125: Rуд | P125: Ом/км | Q125: 0.05 | R125: 5 | S125: 0.001 | T125: 0.45
G126: U,Y | I126: 57.74 | K126: Удельное сопротивление линии | O126: Xуд | P126: Ом/км | Q126: 0.05 | R126: 2 | S126: 0.001 | T126: 0.26
K127: Коэффициент отстройки от небаланса обратной последовательности | O127: K1 | P127: о.е. | Q127: 1 | R127: 10 | S127: 1 | T127: 4
K128: Коэффициент отстройки от небаланса нулевой последовательности | O128: K2 | P128: о.е. | Q128: 1 | R128: 10 | S128: 1 | T128: 6
K129: Время анализа осцилограммы | O129: Dtмин | P129: мс | Q129: 40 | R129: 500 | S129: 1 | T129: 40
G130: I,Y | H130: 1ф | I130: 5 | J130: РТ-1 | K130: Ток срабатывания | O130: Iср | P130: А | Q130: 0.25 | R130: 200 | S130: 0.001 | T130: 4 | Y130: 4
K131: Коэффициент возврата | O131: Kвоз | P131: - | Q131: 0.5 | R131: 1 | S131: 0.01 | T131: 0.95
K132: Выдержка времени на срабатывание | O132: РТ-1_Сраб | P132: с | Q132: 0 | R132: 9999 | S132: 0.001 | T132: 0.5
G133: I,Y | H133: 1ф | I133: 5 | J133: РТ-2 | K133: Ток срабатывания | O133: Iср | P133: А | Q133: 0.25 | R133: 200 | S133: 0.001 | T133: 2 | Y133: 4
K134: Коэффициент возврата | O134: Kвоз | P134: - | Q134: 0.5 | R134: 1 | S134: 0.01 | T134: 0.95
K135: Выдержка времени на срабатывание | O135: РТ-2_Сраб | P135: с | Q135: 0 | R135: 9999 | S135: 0.001 | T135: 0.5
G136: Пуск по напряжению | K136: Контроль неисправности ТН: 1- предусмотрен; 0-не предусмотрен | O136: Контр_нспр_ТН | P136: - | Q136: 0 | R136: 1 | S136: - | T136: 0
K137: Режим работы пуска по напряжению: 1-по U<; 0-по U< или по U2> | O137: Режим_раб_ПпН | P137: - | Q137: 0 | R137: 1 | S137: - | T137: 0
K138: Выдержка времени на формирование сигнала | O138: Неиспр_ТН | P138: с | Q138: 0 | R138: 9999 | S138: 0.001 | T138: 4
G139: ГЗ | K139: Выдержка времени на отключение | O139: ГЗ_Откл | P139: с | Q139: 0 | R139: 9999 | S139: 0.001 | T139: 0.35
K140: Выдержка времени на сигнализацию | O140: ГЗ_Сигн | P140: с | Q140: 0 | R140: 9999 | S140: 0.001 | T140: 0.6
G141: ЗОЗЗ - 2 | K141: Выдержка времени на срабатывание | O141: ЗОЗЗ-2_Сраб | P141: с | Q141: 0 | R141: 9999 | S141: 0.001 | T141: 0.1
G142: АЧР | K142: Включение ЧАПВ: 1-при внутреннем.; 0-при внешнем | O142: Вкл_ЧАПВ | P142: - | Q142: 0 | R142: 1 | S142: - | T142: 0
K143: Выдержка времени на срабатывание | O143: АЧР_Сраб | P143: с | Q143: 0 | R143: 9999 | S143: 0.001 | T143: 0.01
K144: Технологическая выдержка времени | O144: DT1 | P144: с | Q144: 0 | R144: 9999 | S144: 0.001 | T144: 1
G145: Запрет АПВ | K145: Блокировка АПВ2: 1-предусмотрена; 0-не предусмотрена | O145: Вывод_АПВ_2 | P145: - | Q145: 0 | R145: 1 | S145: - | T145: 0
K146: Технологическая выдержка времени | O146: DT2 | P146: с | Q146: 0 | R146: 9999 | S146: 0.001 | T146: 0.2
K147: Технологическая выдержка времени | O147: DT3 | P147: c | Q147: 0 | R147: 9999 | S147: 0.001 | T147: 0.2
K148: Технологическая выдержка времени | O148: DT4 | P148: c | Q148: 0 | R148: 9999 | S148: 0.001 | T148: 0.2
G149: АПВ | K149: Работа АПВ: 1-предусмотрена; 0-не предусмотрена | O149: Работа_АПВ | P149: - | Q149: 0 | R149: 1 | S149: - | T149: 1
K150: Выдержка времени на готовность АПВ-1 | O150: Готов_АПВ1 | P150: с | Q150: 0 | R150: 9999 | S150: 0.001 | T150: 0.2
K151: Выдержка времени на готовность АПВ-2 | O151: Готов_АПВ2 | P151: с | Q151: 0 | R151: 9999 | S151: 0.001 | T151: 15
K152: Готовность цикла АПВ | O152: Готов_цикла_АПВ | P152: c | Q152: 0 | R152: 9999 | S152: 0.001 | T152: 20
K153: Технологическая выдержка времени | O153: DT5 | P153: c | Q153: 0 | R153: 9999 | S153: 0.001 | T153: 0.001
G154: ЧАПВ | K154: Режим работы ЧАПВ: 1-работа; 0-вывод | O154: Режим_ЧАПВ | P154: - | Q154: 0 | R154: 1 | S154: - | T154: 0
K155: Запрет ЧАПВ | O155: Запрет_ЧАПВ | P155: с | Q155: 0 | R155: 9999 | S155: 0.001 | T155: 3
K156: Задержка РПВ | O156: РПВ | P156: с | Q156: 0 | R156: 9999 | S156: 0.001 | T156: 6
K157: Выдержка времени на срабатывание | O157: ЧАПВ_Сраб | P157: с | Q157: 0 | R157: 9999 | S157: 0.001 | T157: 0.2
K158: Готовность ЧАПВ | O158: Готов_ЧАПВ | P158: c | Q158: 0 | R158: 9999 | S158: 0.001 | T158: 20
K159: Длительность сигнала ЧАПВ | O159: Длит_ЧАПВ | P159: c | Q159: 0 | R159: 9999 | S159: 0.001 | T159: 2
G160: Самопроизвольное отключение | K160: Выдержка времени на формирование сигнала | O160: Авар_откл | P160: с | Q160: 0 | R160: 9999 | S160: 0.001 | T160: 0.005
G161: Самопроизвольное включение | K161: Выдержка времени на формирование сигнала | O161: Авар_вкл | P161: с | Q161: 0 | R161: 9999 | S161: 0.001 | T161: 0.005
G162: Цепи управления | K162: Выдержка времени на формирование сигнала | O162: Неиспр_ЦУ | P162: с | Q162: 0 | R162: 9999 | S162: 0.001 | T162: 2.5
K163: Выдержка времени на формирование сигнала | O163: Неиспр_прив | P163: с | Q163: 0 | R163: 9999 | S163: 0.001 | T163: 5
K164: РПВ2: 1- не предусмотрен, 0-предусмотрен | O164: РПВ_2 | P164: - | Q164: 0 | R164: 1 | S164: - | T164: 1
G165: Цепи отключения | K165: Выдержка времени на снятие сигнала | O165: Снятие_Откл | P165: с | Q165: 0 | R165: 9999 | S165: 0.001 | T165: 0.1
K166: Длительность импульса | O166: TMOC1 | P166: c | Q166: 0.001 | R166: 9999 | S166: 0.001 | T166: 1
K167: Выдержка времени на задержку отключения | O167: Огран_сигн_Откл | P167: с | Q167: 0 | R167: 9999 | S167: 0.001 | T167: 3
K168: Выдача команды на отключение: 1-импульсно; 0-непрерывно | O168: Выд_ком_откл | P168: - | Q168: 0 | R168: 1 | S168: - | T168: 0
G169: Цепи включения | K169: Выдержка времени на снятие сигнала | O169: На_снятие_вкл | P169: с | Q169: 0 | R169: 9999 | S169: 0.001 | T169: 1
K170: Длительность импульса с прерыванием | O170: Длит_сигн_вкл | P170: с | Q170: 0.001 | R170: 9999 | S170: 0.001 | T170: 1
K171: Выдержка времени на задержку РПО | O171: Задержка_РПО | P171: с | Q171: 0 | R171: 9999 | S171: 0.001 | T171: 0.1
K172: Выдержка времени на снятие сигнала | O172: Снятие_Вкл | P172: с | Q172: 0 | R172: 9999 | S172: 0.001 | T172: 0.1
K173: Выдержка времени на сброс сигнала | O173: Сбр_сигн_Вкл | P173: с | Q173: 0 | R173: 9999 | S173: 0.001 | T173: 2
K174: Выдержка времени на сброс сигнала | O174: Сбр_сигн_Вкл | P174: с | Q174: 0 | R174: 9999 | S174: 0.001 | T174: 2
K175: Выдержка времени на задержку включения | O175: Огран_сигн_Вкл | P175: с | Q175: 0 | R175: 9999 | S175: 0.001 | T175: 1.5
K176: Контроль тележки:1-предусмотр., 0-не предусмотр. | O176: Контроль_тележки | P176: - | Q176: 0 | R176: 1 | S176: - | T176: 0
G177: РПО | K177: Задержка РПО | O177: РПО_t | P177: с | Q177: 0 | R177: 9999 | S177: 0.001 | T177: 0.5
G178: Формирование команд | K178: Технологическая выдержка времени | O178: DT6 | P178: с | Q178: 0 | R178: 9999 | S178: 0.001 | T178: 0.2
K179: Технологическая выдержка времени | O179: DT7 | P179: c | Q179: 0 | R179: 9999 | S179: 0.001 | T179: 0.2
K180: Контроль сигнала «Дистанционное управление»: 1-не предусмотрен; 0- предусмотрен | O180: Контр_сигн_дист_упр | P180: - | Q180: 0 | R180: 1 | S180: - | T180: 0
K181: Управление выключателем с терминала: 1-предусмотрено; 0-не предусмотрено | O181: Упр_с_терм | P181: - | Q181: 0 | R181: 1 | S181: - | T181: 0
K182: Блокировка включ. при «Авар. откл.»: 1-предусмотр.; 0-не предусмотр. | O182: Блок_вкл_при_Авар_Откл | P182: - | Q182: 0 | R182: 1 | S182: - | T182: 0
G183: Служебные сигналы | K183: Длительность импульса с прерыванием | O183: TMOI3 | P183: с | Q183: 0.001 | R183: 9999 | S183: 0.001 | T183: 1
G185: *- задаваемый диапазон уставки выдержки времени от 0 до 9999 с шагом 0,001 c.
G189: Наименование организации | J189: Исполнитель | L189: ФИО | M189: Подпись | N189: Дата | P189: Примечание
J190: Расчет выполнил
J191: Согласовано
J192: Согласовано
J193: Утверждено

Sheet Параметры Г (hidden)
A2: Таблица 1 Параметры генератора
A3: № п.п. | B3: Наименование | G3: Обозначение | H3: Значение | J3: Ед. изм.
A4: 1 | B4: =CONCATENATE("Тип ",RIGHT(A2,LEN(A2)-SEARCH("Параметры",A2)-LEN("Параметры"))) -> Тип генератора
A5: 2 | B5: =CONCATENATE("Обозначение ",RIGHT(A2,LEN(A2)-SEARCH("Параметры",A2)-LEN("Параметры")), " на схеме") -> Обозначение генератора на схеме
A6: 3 | B6: Номинальное напряжение | G6: Uном | H6: 6.6 | J6: кВ
A7: 4 | B7: Активная мощность защищаемого объекта | G7: Рном | H7: 5.72 | J7: МВт
A8: 5 | B8: Коэффициент мощности | G8: cosf | H8: 0.8 | J8: о.е.
A9: 6 | B9: Полная мощность защищаемого объекта | G9: Sном | H9: =IF(AND(H7<>"",H8<>""),H7/H8,"") -> 7.150 | J9: МВА
A10: 7 | B10: Первичный номинальный ток генератора | G10: Iном | H10: =IF(AND(H9<>"",H6<>""),H9*1000/SQRT(3)/H6,"") -> 625 | J10: А
A13: Таблица 2 Расчет базисных величин
A14: № п.п. | B14: Наименование цепи | G14: Обозначение | H14: Kтт или Kтн | K14: Базисная величина | L14: Ед. изм.
A15: 1 | B15: Ток в цепи ТТ со стороны лин. выводов генератора | G15: Iг | H15: 800 | I15: / | J15: 5 | K15: =IF($H$10<>"",H10/(H15/J15),"") -> 3.909 | L15: =IF(LEFT(G15,1)="I","А","В") -> А
A16: 2 | B16: Ток в цепи ТТ со стороны нул. выводов генератора | G16: Iнг | H16: 800 | I16: / | J16: 5 | K16: =IF($H$10<>"",H10/(H16/J16),"") -> 3.909 | L16: =IF(LEFT(G16,1)="I","А","В") -> А
A17: 3 | B17: Ток на выводах генератора в цепи ТНПУ | G17: Iтнп | H17: - | I17: / | J17: - | K17: 1* | L17: =IF(LEFT(G17,1)="I","А","В") -> А
A18: 5 | B18: Напряжение на выводах генератора | G18: UГ,Y | H18: - | I18: / | J18: 100/√3 | K18: 60.622 | L18: =IF(LEFT(G18,1)="I","А","В") -> В
A19: 6 | B19: Напряжение на выводах генератора | G19: UГ,Δ | H19: - | I19: / | J19: 100/3 | K19: 105 | L19: =IF(LEFT(G19,1)="I","А","В") -> В
A20: 7 | B20: Программно вычисляемые цепи | G20: =CONCATENATE(G15,"_лин") -> Iг_лин | H20: =H15 -> 800 | I20: / | J20: 5 | K20: =IF(K15<>"",K15*SQRT(3),"") -> 6.771 | L20: =L15 -> А
A21: 8 | G21: =CONCATENATE(G16,"_лин") -> Iнг_лин | H21: 800 | I21: / | J21: 5 | K21: =IF(K16<>"",K16*SQRT(3),"") -> 6.771 | L21: =L16 -> А
A23: Примечание:
A24: 1) * - базисная величина принимается по умолчанию

Sheet Параметры Т (hidden)
A3: Таблица 1 Параметры трансформатора
A4: № п.п. | B4: Наименование | G4: Обозначение | H4: Значение | J4: Ед. изм.
A5: 1 | B5: =CONCATENATE("Тип ",RIGHT(A3,LEN(A3)-SEARCH("Параметры",A3)-LEN("Параметры"))) -> Тип трансформатора | G5: 3хОРЦ-417000/750
A6: 2 | B6: =CONCATENATE("Обозначение ",RIGHT(A3,LEN(A3)-SEARCH("Параметры",A3)-LEN("Параметры")), " на схеме") -> Обозначение трансформатора на схеме | G6: 5Т
A7: 3 | B7: Номинальное напряжение на стороне ВН | G7: Uвн | H7: 750 | J7: кВ
A8: 4 | B8: Номинальное напряжение на стороне СН | G8: Uсн | J8: кВ
A9: 5 | B9: Номинальное напряжение на стороне НН | G9: Uнн | H9: 20 | J9: кВ
A10: 6 | B10: Полная мощность защищаемого объекта | G10: Sном | H10: =3*417 -> 1251 | J10: МВА
A11: 7 | B11: Напряжение короткого замыкания | G11: Uk | H11: 13.8 | J11: %
A12: 8 | B12: Первичный номинальный ток на стороен ВН | G12: Iвн | H12: =IF(H7<>"",$H$10*1000/SQRT(3)/H7,"") -> 963 | J12: А
A13: 9 | B13: Первичный номинальный ток на стороен СН | G13: Iсн | H13: =IF(H8<>"",$H$10*1000/SQRT(3)/H8,"") ->  | J13: А
A14: 10 | B14: Первичный номинальный ток на стороен НН1 | G14: Iнн1 | H14: =IF(H9<>"",$H$10*1000/SQRT(3)/H9/2,"") -> 18057 | J14: А
A15: 11 | B15: Первичный номинальный ток на стороен НН2 | G15: Iнн2 | H15: =IF(H10<>"",$H$10*1000/SQRT(3)/H9/2,"") -> 18057 | J15: А
A17: Таблица 2 Расчет базисных величин
A18: № п.п. | B18: Наименование цепи | G18: Обозначение | H18: Kтт или Kтн | K18: Базисная величина | L18: Ед. изм. | M18: Схема соединения ТТ (ТН)
A19: 1 | B19: Ток в цепи ТТ на стороне ВН ТБ | G19: IВН ТБ | H19: 3000 | I19: / | J19: 1 | K19: =IF(H12<>"",H12/(H19/J19),"") -> 0.321 | L19: =IF(LEFT(G19,1)="I","А","В") -> А | M19: Y
A20: 2 | B20: Ток в цепи ТТ на стороне НН1 ТБ | G20: IНН1 ТБ-5Г | H20: 18000 | I20: / | J20: 5 | K20: =IF(H14<>"",H14/(H20/J20),"") -> 5.016 | L20: А | M20: Y
A21: 3 | B21: Ток в цепи ТТ на стороне НН1 ТБ | G21: IНН2 ТБ-5Г | H21: 18000 | I21: / | J21: 5 | K21: =IF(H15<>"",H15/(H21/J21),"") -> 5.016 | L21: А | M21: Y
A22: 4 | B22: Ток в цепи ТТ на стороне НН1 ТБ | G22: IНН1 ТБ-6Г | H22: 18000 | I22: / | J22: 5 | K22: =IF(H14<>"",H14/(H22/J22),"") -> 5.016 | L22: А | M22: Y
A23: 5 | B23: Ток в цепи ТТ на стороне НН1 ТБ | G23: IНН2 ТБ-6Г | H23: 18000 | I23: / | J23: 5 | K23: =IF(H15<>"",H15/(H23/J23),"") -> 5.016 | L23: А | M23: Y
A24: 6 | B24: Ток в цепи ТТ в нулевом проводе ТБ | G24: IN, ВН | H24: 1000 | I24: / | J24: 1 | K24: 1* | L24: А | M24: Y
A25: 7 | B25: Ток в цепи ТТ типа ТПС | G25: IТПС | I25: / | K25: 1* | L25: А | M25: Y
A26: 8 | B26: Напряжение в цепи ТН на стороне НН1 ТБ (Y) | G26: UНН1 ТБ, Y | H26: 20000 | I26: / | J26: 100 | K26: =J26 -> 100 | L26: В | M26: Y
A27: 9 | B27: Напряжение в цепи ТН на стороне НН1 ТБ (∆) | G27: UНН1 ТБ, Δ | H27: 20000 | I27: / | J27: 33 | K27: 1* | L27: В | M27: Δ
A28: 10 | B28: Напряжение в цепи ТН на стороне НН2 ТБ (Y) | G28: UНН2 ТБ, Y | H28: 20000 | I28: / | J28: 100 | K28: =J28 -> 100 | L28: В | M28: Y
A29: 11 | B29: Напряжение в цепи ТН на стороне НН2 ТБ (∆) | G29: UНН2 ТБ, Δ | H29: 20000 | I29: / | J29: 33 | K29: 1* | L29: В | M29: Δ
A30: 12 | B30: Программно вычисляемые цепи | G30: =CONCATENATE(G19,"_лин") -> IВН ТБ_лин | H30: =H19 -> 3000 | I30: / | J30: 1 | K30: =IF(K19<>"",K19*SQRT(3),"") -> 0.556 | L30: =L19 -> А | M30: Δ
A31: 13 | G31: =CONCATENATE(G20,"_dТБ") -> IНН1 ТБ-5Г_dТБ | H31: 18000 | I31: / | J31: 5 | K31: =IF(K20<>"",K20*2,"") -> 10.031 | L31: =L20 -> А | M31: Y
A32: 14 | G32: =CONCATENATE(G21,"_dТБ") -> IНН2 ТБ-5Г_dТБ | H32: 18000 | I32: / | J32: 5 | K32: =IF(K21<>"",K21*2,"") -> 10.031 | L32: =L21 -> А | M32: Y
A33: 15 | G33: =CONCATENATE(G22,"_dТБ") -> IНН1 ТБ-6Г_dТБ | H33: 18000 | I33: / | J33: 5 | K33: =IF(K22<>"",K22*2,"") -> 10.031 | L33: =L22 -> А | M33: Y
A34: 16 | G34: =CONCATENATE(G23,"_dТБ") -> IНН2 ТБ-6Г_dТБ | H34: 18000 | I34: / | J34: 5 | K34: =IF(K23<>"",K23*2,"") -> 10.031 | L34: =L23 -> А | M34: Y
A36: Примечание:
A37: 1) * - базисная величина принимается по умолчанию

Sheet Параметры ТСН (hidden)
A3: Таблица 1 Параметры трансформатора собственных нужд
A4: № п.п. | B4: Наименование | G4: Обозначение | H4: Значение | J4: Ед. изм.
A5: 1 | B5: =CONCATENATE("Тип ",RIGHT(A3,LEN(A3)-SEARCH("Параметры",A3)-LEN("Параметры"))) -> Тип трансформатора собственных нужд
A6: 2 | B6: =CONCATENATE("Обозначение ",RIGHT(A3,LEN(A3)-SEARCH("Параметры",A3)-LEN("Параметры")), " на схеме") -> Обозначение трансформатора собственных нужд на схеме | G6: ТСН
A7: 3 | B7: Номинальное напряжение на стороне ВН | G7: Uвн | H7: 10 | J7: кВ
A8: 4 | B8: Номинальное напряжение на стороне СН | G8: Uсн | J8: кВ
A9: 5 | B9: Номинальное напряжение на стороне НН | G9: Uнн | H9: 0.4 | J9: кВ
A10: 6 | B10: Полная мощность защищаемого объекта | G10: Sном | H10: 1 | J10: МВА
A11: 7 | B11: Напряжение короткого замыкания | G11: Uk | J11: %
A12: 8 | B12: Первичный номинальный ток на стороен ВН | G12: Iвн | H12: =IF(H7<>"",$H$10*1000/SQRT(3)/H7,"") -> 58 | J12: А
A13: 9 | B13: Первичный номинальный ток на стороен СН | G13: Iсн | H13: =IF(H8<>"",$H$10*1000/SQRT(3)/H8,"") ->  | J13: А
A14: 10 | B14: Первичный номинальный ток на стороен НН | G14: Iнн | H14: =IF(H9<>"",$H$10*1000/SQRT(3)/H9,"") -> 1443 | J14: А
A16: Таблица 2 Расчет базисных величин
A17: № п.п. | B17: Наименование цепи | G17: Обозначение | H17: Kтт или Kтн | K17: Базисная величина | L17: Ед. изм.
A18: 1 | B18: Ток в цепи ТТ на стороне ВН ТСН | G18: Iвн тсн | H18: 300 | I18: / | J18: 5 | K18: =IF(H12<>"",H12/(H18/J18),"") -> 0.962 | L18: =IF(LEFT(G18,1)="I","А","В") -> А
A19: 2 | B19: Ток в цепи ТТ на стороне НН ТСН | G19: Iнн тсн | H19: 1500 | I19: / | J19: 5 | K19: =IF(H14<>"",H14/(H19/J19),"") -> 4.811 | L19: А
A20: 3 | B20: Ток в цепи ТТ в нулевом проводе ТСН | G20: In | I20: / | K20: 1* | L20: А
A21: 3 | B21: Ток в цепи ТНП на стороне ВН ТСН | G21: Iтнп | I21: / | K21: 1* | L21: А
A22: 4 | B22: Напряжение в цепи ТН на шинах ГРУ 10 кВ (Y) | G22: Uш,Y | H22: 10500 | I22: / | J22: 100 | K22: =J22 -> 100 | L22: В
A23: 5 | B23: Напряжение в цепи ТН на шинах ГРУ 10 кВ (∆) | G23: U∆ н-к | H23: 10500 | I23: / | J23: 33 | K23: 1* | L23: В
A24: 6 | B24: Программно вычисляемые цепи | G24: =CONCATENATE(G19,"_лин") -> Iнн тсн_лин | H24: =H18 -> 300 | I24: =I18 -> / | J24: =J18 -> 5 | K24: =IF(K19<>"",K19*SQRT(3),"") -> 8.333 | L24: =L18 -> А
A26: Примечание:
A27: 1) * - базисная величина принимается по умолчанию
